Cogmind - Beta 16.1 @@@ ROGUE MODE // 2026.04.27 @ 21:33:24 Player: kite Result: Destroyed by S-10 Pest with Light Assault Rifle Performance ------------- Evolutions (2) 1000 Regions Visited (6) 1200 Robots Destroyed (31) 155 Value Destroyed (911) 911 Prototype IDs (0) 0 Alien Tech Used (0) 0 Bonus (163) 163 TOTAL SCORE: 3429 Bonus ------- Follower Combat Kills 163 Cogmind --------- Core Integrity 0/550 Matter 297/300 Energy 124/125 System Corruption 19% Temperature Cool (0) Movement Rolling (115) Ox1 Location -8/Storage Parts ------- > --- POWER (1) -------- Light Ion Engine > --- PROPULSION (4) --- Light Treads Compact Wheel Flight Unit > --- UTILITY (4) ------ Improved Heat Sink Medium Storage Unit Drone Bay (2/2) > --- WEAPON (2) ------- Beam Rifle Light Assault Rifle > --- INVENTORY (10) --- Army-in-a-Box Peak State ------------ > --- POWER ------------ Light Nuclear Core > --- PROPULSION ------- Light Treads Light Treads Light Treads Advanced Treads > --- UTILITY ---------- Improved Heat Sink Medium Storage Unit Hardlight Generator > --- WEAPON ----------- Assault Rifle Rocket Launcher > --- INVENTORY -------- Hardlight Generator Makeshift Hacking Suite Army-in-a-Box Light Assault Rifle Light Assault Rifle [Rating: 25] Favorites ----------- Power Light Nuclear Core Engine Ion Engine Power Core Light Nuclear Core Propulsion Light Treads Treads Light Treads Leg Aluminum Leg Wheel Compact Wheel Flight Unit Flight Unit Utility Improved Heat Sink Device Improved Heat Sink Storage Medium Storage Unit Processor Signal Interpreter Hackware Makeshift Hacking Suite Weapon Assault Rifle Energy Gun Beam Rifle Ballistic Gun Assault Rifle Launcher EMP Blaster Build | -11 -10 -10 -10 -9 -8 -8 ------- Run | Yrd Mat Min Exi Min Mat Sto Slots Evolved 4 | . . . . . 4 . Power . | . . . . . . . Propulsion 2 | . . . . . 2 . Utility 2 | . . . . . 2 . Weapon . | . . . . . . . Parts Attached 34 | 7 4 2 2 1 10 8 Power 4 | 1 . 2 . . . 1 Engine 3 | 1 . 1 . . . 1 Core 1 | . . 1 . . . . Reactor . | . . . . . . . Propulsion 12 | 2 1 . 1 . 5 3 Treads 6 | 2 1 . 1 . 1 1 Leg 1 | . . . . . 1 . Wheel 3 | . . . . . 3 . Hover . | . . . . . . . Flight 2 | . . . . . . 2 Utility 9 | 1 2 . 1 . 3 2 Device 5 | . 1 . . . 2 2 Storage 2 | 1 . . 1 . . . Processor 1 | . 1 . . . . . Hackware 1 | . . . . . 1 . Protection . | . . . . . . . Artifact . | . . . . . . . Weapon 9 | 3 1 . . 1 2 2 Energy Gun 2 | 1 . . . . . 1 Energy Cannon . | . . . . . . . Ballistic Gun 5 | 2 1 . . 1 . 1 Ballistic Cannon . | . . . . . . . Launcher 2 | . . . . . 2 . Special Weapon . | . . . . . . . Impact Weapon . | . . . . . . . Slashing Weapon . | . . . . . . . Piercing Weapon . | . . . . . . . Special Melee Weapon . | . . . . . . . Unidentified Prototypes . | . . . . . . . Corrupted Parts 4 | . . . . . . 4 System Corruption 16 | . . . . . . 16 Parts Lost 18 | . . 1 . . 13 4 Power 1 | . . . . . 1 . Propulsion 8 | . . 1 . . 6 1 Utility 4 | . . . . . 2 2 Weapon 5 | . . . . . 4 1 Highest Loss Streak 10 | . . 1 . . 10 4 To Critical Strikes . | . . . . . . . Average Backups 5 | 2 5 7 5 5 3 1 Power . | . 1 1 1 . . . Propulsion 2 | . 3 3 1 1 . . Utility 1 | . . . 1 2 2 1 Weapon 1 | 1 1 1 1 1 . . Tool/Special . | . . . . . . . Unused Backups 9 | . . 3 4 1 . 1 Power 1 | . . . . 1 . . Propulsion 6 | . . 3 3 . . . Utility 2 | . . . 1 . . 1 Weapon . | . . . . . . . Tool/Special . | . . . . . . . Average Slot Usage (%) 95 | . 93 99 100 100 66 65 Engine 3 | . 14 8 . . . 6 Core 9 | . . 5 14 14 1 . Treads 26 | . 28 27 28 28 16 6 Device 12 | . 3 14 14 14 13 8 Storage 13 | . 14 14 14 14 9 9 Ballistic Gun 25 | . 26 28 28 28 10 6 Peak Build Rating 25 | 6 9 12 17 17 25 22 Average Rating 14 | 4 7 10 14 17 19 16 On Entrance 11 | . 6 9 12 17 17 17 Avg Prop Armor Cover (%) 18 | . . . . . 20 16 Naked Turns . | . . . . . . . Heaviest Build 24 | 13 15 15 19 19 24 24 Greatest Support 82 | 40 40 40 40 40 82 32 Greatest Overweight (x) 4 | . . . . . 3 4 Average Overweight (x) . | . . . . . . . Largest Inventory Capacity 10 | 8 8 8 10 10 10 10 Average Capacity 9 | 7 8 8 9 10 10 10 Most Carried 10 | 7 8 8 10 10 10 7 Average Carried 8 | 3 5 7 8 9 8 6 Final Capacity 10 | 8 8 8 10 10 10 10 Final Carried 10 | 5 8 8 10 10 7 6 Class Distribution -------------------- 96% | Mutant 3% | Scavenger-Mutant Dominant Class ---------------- Mutant | -10/Materials Mutant | -10/Mines Mutant | -10/Exiles Mutant | -9/Mines Mutant | -8/Materials Scavenger-Mutant | -8/Storage Resources | -11 -10 -10 -10 -9 -8 -8 ----------- Run | Yrd Mat Min Exi Min Mat Sto Matter Collected 1173 | 141 110 420 30 70 268 134 Remotely . | . . . . . . . Salvage Created 1023 | 26 183 110 . 79 399 226 Parts 55 | 4 10 10 . 2 20 9 Haulers Intercepted . | . . . . . . . Recyclers Shooed 2 | . 1 . . . . 1 Parts Field Recycled . | . . . . . . . Retrieved Matter . | . . . . . . . Parts Self-Destructed . | . . . . . . . Prevented . | . . . . . . . Parts Restored . | . . . . . . . Kills | -11 -10 -10 -10 -9 -8 -8 ------- Run | Yrd Mat Min Exi Min Mat Sto Combat Hostiles Destroyed 30 | . 5 5 . 6 10 4 Guns 23 | . 5 5 . 6 4 3 AOE 7 | . . . . . 6 1 Classes Destroyed 8 | 1 1 1 . 1 3 1 Builder 2 | . . . . . 2 . Tunneler 1 | 1 . . . . . . Recycler 2 | . . . . . 1 1 Swarmer 8 | . . 4 . 2 . 2 Grunt 15 | . 5 1 . . 9 . Brawler 1 | . . . . . . 1 Sentry 2 | . . . . . 1 1 Assembled 4 | . . . . 4 . . Best Kill Streak 4 | 1 3 3 . 2 4 2 Combat Bots Only 3 | . 3 3 . 2 3 2 Max Kills in Single Turn 3 | 1 1 1 . 2 3 1 Gunslinging 1 | . . . . 1 . . Exploded 2 | . . . . . 2 1 Melee . | . . . . . . . Uniques/NPCs Destroyed . | . . . . . . . Combat | -11 -10 -10 -10 -9 -8 -8 -------- Run | Yrd Mat Min Exi Min Mat Sto Hostile Shots Fired 238 | . 25 48 . 8 125 32 Missed 68 | . 7 6 . 2 43 10 Hits 170 | . 18 42 . 6 82 22 Melee 4 | . . . . 1 . 3 Projectile 166 | . 18 42 . 5 82 19 AOE 2 | . 1 . . . 1 . Critical Strikes 3 | . . 1 . . 1 1 Damage Taken 2598 | . 327 469 . 82 1439 281 Core 731 | . 66 82 . 30 439 114 Absorbed by Shields 44 | . . . . . 44 . Core Remaining (%) 64 | 100 . . . 28 . . Volleys Fired 115 | 1 24 24 . 15 36 15 Largest 2 | 2 2 2 . 2 2 2 Hottest 76 | 40 40 40 . 40 53 76 Shots Fired 210 | 2 45 48 . 30 60 25 Gun 197 | 2 45 48 . 30 49 23 Cannon . | . . . . . . . Launcher 13 | . . . . . 11 2 Special . | . . . . . . . Kinetic 184 | 2 45 48 . 30 49 10 Thermal 13 | . . . . . . 13 Explosive 6 | . . . . . 6 . Electromagnetic 7 | . . . . . 5 2 Robot Hit Streak 11 | 1 7 9 . 4 10 11 Robot Miss Streak 4 | 1 3 4 . 3 3 4 Penetration Max . | . . . . . . . Secondary Targets 3 | . . 1 . 1 . 1 Max Gunslinging Chain 1 | . . 1 . 1 . 1 Shots Hit Robots 128 | 1 29 31 . 14 37 16 Core Hits 73 | 1 12 10 . 7 35 8 Critical Kills . | . . . . . . . Critical Parts Destroyed . | . . . . . . . Critical Strikes 1 | . . . . . . 1 Burn 1 | . . . . . . 1 Melee Attacks . | . . . . . . . Impact . | . . . . . . . Slashing . | . . . . . . . Piercing . | . . . . . . . Sneak Attacks . | . . . . . . . Combat Hostiles . | . . . . . . . Follow-up Attacks . | . . . . . . . Damage Inflicted 2331 | 13 307 349 . 141 1299 222 Guns 1350 | 13 307 349 . 141 350 190 Cannons . | . . . . . . . Explosions 973 | . . . . . 941 32 Melee . | . . . . . . . Ramming 8 | . . . . . 8 . Kinetic 1205 | 13 307 349 . 141 350 45 Thermal 145 | . . . . . . 145 Explosive 783 | . . . . . 783 . Electromagnetic 190 | . . . . . 158 32 Impact . | . . . . . . . Slashing . | . . . . . . . Piercing . | . . . . . . . Highest Corruption 19 | . . . . . . 19 Average Corruption 16 | . . . . . . 16 Corruption Purged . | . . . . . . . Corruption Blocked . | . . . . . . . Effects 7 | . . . . . . 7 Message Errors 2 | . . . . . . 2 Matter Fused 1 | . . . . . . 1 Energy Discharges 1 | . . . . . . 1 Parts Rejected 2 | . . . . . . 2 Alerts 1 | . . . . . . 1 Overload Shots . | . . . . . . . Overflow Damage 19 | . . . . . . 19 Projectiles . | . . . . . . . Explosions 19 | . . . . . . 19 Melee . | . . . . . . . Knockbacks . | . . . . . . . Impact . | . . . . . . . Kinetic . | . . . . . . . Secondary . | . . . . . . . Self-Inflicted Damage 68 | . . . . . 38 30 Shots 5 | . . . . . 3 2 Rammed . | . . . . . . . Targets Rammed 5 | . . . . . 5 . Kicked 5 | . . . . . 5 . Crushed . | . . . . . . . Highest Temperature 15 | . 12 15 . 8 7 14 Average Temperature 8 | . 8 7 . 8 7 10 Received Heat Transfer 1036 | . 132 192 . 20 683 9 Siege Activations . | . . . . . . . Martial Activations . | . . . . . . . Shielding Activations . | . . . . . . . Robots Disrupted . | . . . . . . . Combat Hostiles . | . . . . . . . Robots Corrupted . | . . . . . . . Combat Hostiles . | . . . . . . . Parts Fried . | . . . . . . . Impact Corruptions . | . . . . . . . Robots Melted . | . . . . . . . Combat Hostiles . | . . . . . . . Parts Melted . | . . . . . . . Heat Transferred 444 | . . . . . . 444 Parts Sabotaged . | . . . . . . . Parts Stolen . | . . . . . . . Parts Stripped . | . . . . . . . Power Chain Reactions . | . . . . . . . Alert | -11 -10 -10 -10 -9 -8 -8 ------- Run | Yrd Mat Min Exi Min Mat Sto Maximum Alert Level . | . . . . . . . Low Security (%) 100 | 100 100 100 . 100 100 100 Level 1 . | . . . . . . . Level 2 . | . . . . . . . Level 3 . | . . . . . . . Level 4 . | . . . . . . . Level 5 . | . . . . . . . High Security . | . . . . . . . Max Security . | . . . . . . . Peak Influence 101 | 5 60 74 . 61 101 54 Initial 29 | . . 7 . . 17 29 Average 14 | . 18 18 . 5 34 21 Influence Increases 981 | 5 120 309 . 117 318 112 Destroy 0b10 Robot/C 700 | . 100 240 . 80 200 80 Destroy 0b10 Robot/NC 25 | 5 . . . . 15 5 Destroy Leader 130 | . 20 50 . 20 30 10 Allied During Kill 21 | . . 19 . 2 . . Successful Hack 2 | . . . . . . 2 Disable Machine 30 | . . . . 15 . 15 Destroy Structure 28 | . . . . . 28 . Lose Combat Pursuer 45 | . . . . . 45 . Influence Decreases 956 | 5 100 329 . 72 292 158 Entered New Map 83 | . . 13 . . 28 42 Time Decay 719 | 5 100 289 . 72 177 76 Lost Part 134 | . . 7 . . 87 40 Lost Ally 20 | . . 20 . . . . Squads Dispatched 4 | . 1 1 . . 2 . Investigation 1 | . . 1 . . . . Extermination . | . . . . . . . Reinforcement 3 | . 1 . . . 2 . Assault . | . . . . . . . Garrison . | . . . . . . . Intercept . | . . . . . . . Searches Triggered . | . . . . . . . Construction Impeded 1 | . . . . . 1 . Haulers Reinforced . | . . . . . . . Active Scanning Responses . | . . . . . . . Cargo Convoy Interrupts . | . . . . . . . Stealth | -11 -10 -10 -10 -9 -8 -8 --------- Run | Yrd Mat Min Exi Min Mat Sto Distress Signals 1 | . 1 . . . . . Communications Jammed . | . . . . . . . Distress Signals . | . . . . . . . Times Spotted 49 | . 8 12 . 6 17 6 Peak Tracking Total 7 | . 5 3 . 2 7 4 Tactical Retreats 3 | . . . . 1 2 . Traps | -11 -10 -10 -10 -9 -8 -8 ------- Run | Yrd Mat Min Exi Min Mat Sto Traps Triggered 1 | . . . . . . 1 Indirectly . | . . . . . . . Trap Hack Attempts . | . . . . . . . Triggered . | . . . . . . . Disarmed . | . . . . . . . Reprogrammed . | . . . . . . . Reused . | . . . . . . . Traps Extracted . | . . . . . . . Installed . | . . . . . . . Triggered . | . . . . . . . Machines | -11 -10 -10 -10 -9 -8 -8 ---------- Run | Yrd Mat Min Exi Min Mat Sto Machines Disabled 2 | . . . . 1 . 1 Max in Single Turn 1 | . . . . 1 . 1 Machines Repaired . | . . . . . . . Machines Dismantled . | . . . . . . . Machines Sabotaged . | . . . . . . . Overloaded Fab Kills . | . . . . . . . Hacking | -11 -10 -10 -10 -9 -8 -8 --------- Run | Yrd Mat Min Exi Min Mat Sto Machines Accessed 5 | . 1 1 . . 1 2 Terminals 5 | . 1 1 . . 1 2 Fabricators . | . . . . . . . Repair Stations . | . . . . . . . Recycling Units . | . . . . . . . Scanalyzers . | . . . . . . . Garrison Access . | . . . . . . . Total Hacks 8 | . 1 3 . . 1 3 Successful 3 | . 1 1 . . . 1 Failed 5 | . . 2 . . 1 2 Catastrophic 1 | . . . . . . 1 Database Lockouts . | . . . . . . . Manual 9 | . 1 4 2 . 1 1 Terminals 8 | . 1 3 . . 1 3 Fabricators . | . . . . . . . Repair Stations . | . . . . . . . Recycling Units . | . . . . . . . Scanalyzers . | . . . . . . . Garrison Access . | . . . . . . . Terminal Hacks 2 | . . 1 . . . 1 Open Door 1 | . . . . . . 1 Zone Layout 1 | . . 1 . . . . Fabricator Hacks . | . . . . . . . Repair Station Hacks . | . . . . . . . Recycling Unit Hacks . | . . . . . . . Scanalyzer . | . . . . . . . Garrison Access Hacks . | . . . . . . . Unauthorized Hacks 1 | . 1 . . . . . Terminals 1 | . 1 . . . . . Botnet 1 | . 1 . . . . . Fabricators . | . . . . . . . Repair Stations . | . . . . . . . Recycling Units . | . . . . . . . Scanalyzers . | . . . . . . . Garrison Access . | . . . . . . . Data Cores Recovered . | . . . . . . . Used . | . . . . . . . Hacking Detections 3 | . . 1 . . 1 1 Full Trace Events 1 | . . 1 . . . . Feedback Events . | . . . . . . . Feedback Blocked . | . . . . . . . Robot Schematics Acquired . | . . . . . . . Robots Built . | . . . . . . . Authchips . | . . . . . . . Time . | . . . . . . . Total Robot Build Rating . | . . . . . . . Part Schematics Acquired . | . . . . . . . Parts Built . | . . . . . . . Authchips . | . . . . . . . Time . | . . . . . . . Total Part Build Rating . | . . . . . . . Part Studies Acquired . | . . . . . . . Parts Repaired . | . . . . . . . Time . | . . . . . . . Parts Recycled . | . . . . . . . Recycled Matter . | . . . . . . . Retrieved Matter . | . . . . . . . Retrieved Components . | . . . . . . . Parts Scanalyzed . | . . . . . . . Part Schematics Acquired . | . . . . . . . Parts Damaged . | . . . . . . . Bothacking | -11 -10 -10 -10 -9 -8 -8 ------------ Run | Yrd Mat Min Exi Min Mat Sto Used RIF Installer . | . . . . . . . Robots Hacked . | . . . . . . . Non-combat . | . . . . . . . Combat . | . . . . . . . Robot Hacks Applied . | . . . . . . . Relay Couplers Released . | . . . . . . . Fabnet Peak Effective % . | . . . . . . . Robots Rewired 2 | . . . 2 . . . Allies Hacked . | . . . . . . . Hacks Repelled . | . . . . . . . Allies | -11 -10 -10 -10 -9 -8 -8 -------- Run | Yrd Mat Min Exi Min Mat Sto Total Allies 5 | . . 3 2 . . . Largest Group 3 | . . 3 3 3 . . Highest-Rated Group 40 | . . 40 32 32 . . Highest-Rated Ally 16 | . . 16 16 16 . . Total Orders 3 | . . . . . . 3 ROAM 1 | . . . . . . 1 EXPLORE 2 | . . . . . . 2 Ally Attacks 44 | . . 31 . 13 . . Total Damage 385 | . . 340 . 45 . . Kills 9 | . . 7 . 2 . . Allies Corrupted . | . . . . . . . Allies Melted . | . . . . . . . Intel | -11 -10 -10 -10 -9 -8 -8 ------- Run | Yrd Mat Min Exi Min Mat Sto Active Infowar (turns) . | . . . . . . . Robot Analysis Total . | . . . . . . . Derelict Logs Recovered 2 | . . 1 . 1 . . Drone Launches 4 | . . . . . . 4 Drone Recoveries 4 | . . . . . . 4 Exploration | -11 -10 -10 -10 -9 -8 -8 ------------- Run | Yrd Mat Min Exi Min Mat Sto Turns Passed 4829 | 95 313 1246 1121 1477 383 194 Spaces Moved 2175 | 51 147 715 689 301 200 72 Core 9 | 4 . . . . 3 2 Treads 1939 | 47 147 715 689 301 34 6 Legs 9 | . . . . . 9 . Wheels 218 | . . . . . 154 64 Hover . | . . . . . . . Flight . | . . . . . . . Fastest Speed 50 | 50 160 160 160 160 95 100 Average Speed 154 | 151 160 160 160 160 118 117 Slowest Speed 250 | 160 160 160 160 160 200 250 Overloaded Moves . | . . . . . . . Propulsion Burnouts . | . . . . . . . Robots Hopped . | . . . . . . . Potential Cave-ins . | . . . . . . . Cave-ins Triggered . | . . . . . . . Exploration Rate (%) 45 | 3 24 99 88 71 15 18 Regions Visited 6 Branch Regions 4 Pre-discovered Areas 1 | . . 1 . . . . Known Exits Taken 1 | . . . . . 1 . Unknown Exits Taken 5 | 1 1 1 1 1 . . Scrap Searched 1 | . . 1 . . . . Spaces Dug . | . . . . . . . Terrain Destroyed 26 | . . . . . 26 . Melee . | . . . . . . . Projectile . | . . . . . . . AOE 26 | . . . . . 26 . Terrain Rammed . | . . . . . . . Walls Destroyed . | . . . . . . . Machines Disabled . | . . . . . . . Actions | -11 -10 -10 -10 -9 -8 -8 --------- Run | Yrd Mat Min Exi Min Mat Sto Total 3444 | 65 183 777 711 1271 282 155 Wait 1063 | . 6 23 1 952 26 55 Move 2169 | 50 146 714 688 300 199 72 Hop . | . . . . . . . Pick Up 20 | 7 1 5 4 1 2 . Fast Attach 25 | 4 3 . . . 7 11 Attach 9 | 2 . 1 . . 5 1 Detach 1 | . 1 . . . . . Swap 12 | 1 1 4 3 1 2 . Drop 18 | . 1 6 8 2 . 1 Fire 115 | 1 24 24 . 15 36 15 Melee . | . . . . . . . Ram . | . . . . . . . Kick 5 | . . . . . 5 . Crush . | . . . . . . . Escape Stasis . | . . . . . . . Rewire 7 | . . . 7 . . . Trap . | . . . . . . . Miscellaneous . | . . . . . . . Route ------- -11/Scrapyard -10/Materials -10/Mines (discovered 4 exits: [*Mat x2] / *Exi / [*Sub]) -10/Exiles -9/Mines -8/Materials -8/Storage History --------- Turn | Location | Event 3 | -11/Scrapyard | Discovered new exit (range 15) 96 | -11/Scrapyard | Entered Materials 247 | -10/Materials | Discovered new exit (range 15) 312 | -10/Materials | Build established: Mutant 409 | -10/Materials | Entered Mines 460 | -10/Mines | Assisted by bots powering up and referring to "LRC-V3" 786 | -10/Mines | Learned location of Storage (-8) 957 | -10/Mines | Discovered new exit (range 8) 1178 | -10/Mines | Core integrity fell below 50% 1512 | -10/Mines | Discovered new exit (range 12) 1520 | -10/Mines | Discovered new exit (range 9) 1642 | -10/Mines | Deemed a non-threat by the Exiles lab entrance 1642 | -10/Mines | Discovered new exit (range 5) 1655 | -10/Mines | Entered Exiles 1655 | -10/Exiles | Found Exiles lab destroyed 1655 | -10/Exiles | Accompanied by 1 ally 1997 | -10/Exiles | Opened EX-Vault 2006 | -10/Exiles | Found Prototype Device 2760 | -10/Exiles | Discovered new exit (range 11) 2776 | -10/Exiles | Entered Mines 2776 | -9/Mines | Accompanied by 3 allies 2874 | -9/Mines | Assembled infested the area 2879 | -9/Mines | Assisted by a Guerilla fighting off Assembled 4228 | -9/Mines | Discovered new exit (range 9) 4235 | -9/Mines | Received a Rocket Launcher from a helpful Derelict 4253 | -9/Mines | Entered Materials 4253 | -8/Materials | Evolved 4 slots: Propulsion x2, Utility x2 4254 | -8/Materials | Identified exit to Storage 4362 | -8/Materials | Lost 3 parts (1p1n1w) 4515 | -8/Materials | Core integrity fell below 50% 4532 | -8/Materials | Lost 10 parts (5n2u3w) 4636 | -8/Materials | Entered Storage 4656 | -8/Storage | Core integrity fell below 20% 4667 | -8/Storage | System corruption reached 10% 4707 | -8/Storage | Lost 4 parts (1n2u1w) 4830 | -8/Storage | Destroyed by S-10 Pest with Light Assault Rifle Last Messages --------------- Sealed Heavy Doors opened. 04761_ Acquired Drone Bay. 04763_ Drone released from Drone Bay. 04763_ System corrupted: IFF burst signal emitted. 04764_ Drone released from Drone Bay. 04777_ Drone retrieved by Drone Bay (repair cost: 2). 04779_ System corrupted: Matter fused (-9). 04782_ Drone retrieved by Drone Bay (no repairs). 04785_ Drone released from Drone Bay. 04792_ Drone retrieved by Drone Bay (repair cost: 2). 04796_ Drone retrieved by Drone Bay (no repairs). 04813_ System corrupted: Flight Unit rejected. 04815_ Y-45 Defender destroyed. 04817_ Acquired 50 matter. 04825_ R-06 Scavenger destroyed. Map ----- +----------------------------------------------------+ | ??????????????????????????????????????? | | ??????????????????????????????????????? | | ??????????????????????????????????????? | | ??????????????????????????????????????? | | ??????????????????????????????????????? | | ???????????##+#???????????????????????? | | ???????????# ???????????????????????? | | ???????????# ???????????????????????? | | ???????????# ???????????????????????? | | ???????????# ???????????????????????? | | ???????????+ s???????????????????????? | | ???????????# #??????????????????????? | | ???????????# #??????????????????????? | | ???????????# #??????????????????????? | | ???????????# ###########????????????? | | ???????????# # #????????????? | | ???????????# # #????????????? | | ???????????# # #????????????? | | ???????????# # #????????????? | | ???????????# # #????????????? | | ???????????# + """"" #????????????? | | ???????????# !=# """"" #????????????? | | ???????????# /%# """"" #????????????? | | ???????????# =######### ?????????????? | | ???????????# #??????????????????????? | | ???????????# @#??????????????????????? | | ???????????# ########???????????????? | | ???????????# + #=!!!#???????????????? | | ???????????# # #???????????????? | | ???????????# # #!!!!#???????????????? | | ???????????# #T######???????????????? | | ???????????# u###????????????????????? | | ???????????# ###########????????????? | | ???????????# # #????????????? | | ???????????# # #????????????? | | ????######## # ###??????????? | | ????# # ""#??????????? | | ????# + T"#??????????? | | ????# # ""#??????????? | | ????######+##+## ###??????????? | | ??????# # / #????????????? | | ??????# ###########????????????? | | ??????# #??????????????????????? | | ??????# #??????????????????????? | | ??????# #??????????????????????? | | ??????# #??????????????????????? | | ??????# #??????????????????????? | | ??????# #??????????????????????? | | ??????# #??????????????????????? | | ??????##########??????????????????????? | +----------------------------------------------------+ Best States ------------- Heat Dissipation 45 Energy Generation 14 Energy Capacity 250 Matter Stores 300 Matter Capacity 300 Sight Range 16 Terrain Scan Density 10 Evasion (%) 41 Recoil Reduction 4 Offensive Hacking 11 Item Schematics ----------------- None Robot Schematics ------------------ None Fabricated ------------ Nothing Repaired ---------- Nothing Studied --------- None Alien Tech Used ----------------- None Achievements -------------- Luggage Code Challenges ------------ None Game ------ Seed RefineryArmageddonFirepult Manual? 0 Play Time 00:21:11 Cumulative 173.4 hours Start 2026.04.27 @ 21:13:34 End 2026.04.27 @ 21:33:24 Sessions 1 Manual Loads 0 Difficulty Rogue Special Mode None Game No. 214 Rogue 214 Adventurer 0 Explorer 0 Win Type - Total 3 Types 3/0/0/0/0/0/0/0/0/0 Lore% 41 Gallery% 54 Achievement% 44 Wizard Run 0 Options --------- Layout 1 ASCII 0 Keyboard 0 Movement Mouse Keybinds 0 Fullscreen 2 Font 24/Smallcaps Map View 50x35 Zoom Use 16% Tactical HUD 1 Map Filters NONE Filters NONE Steam 1 RUN: c1bdaae1-2b84-4190-9d4c-5bbba8c51dab